bitfinex/quotes_ETHUSD_20240614
["timestamp","ask_amount","ask_price","bid_price","bid_amount"]
[1718326597280,2.027,3476.1,3474.8,2.22033397]
[1718326597783,2.027,3476.1,3474.8,2.16279578]
[1718326597949,7.45,3476.4,3474.8,2.16279578]
[1718326597950,2.027,3475.7,3474.8,0.17935064]
[1718326598373,2.027,3475.3,3474.5,2.3374]
[1718326598745,2.027,3475.3,3473.8,2.3374]
[1718326598980,2.027,3475.3,3473.9,1.43344514]
[1718326599208,2.027,3475.3,3473.9,1.61284479]
[1718326599486,2.027,3475.3,3474.0,0.69502448]
[1718326599699,2.027,3475.3,3474.1,1.43344514]
[1718326599878,2.027,3475.3,3474.1,1.6127779]
[1718326600954,3.0,3475.6,3474.1,1.6127779]
[1718326601248,3.0,3475.6,3474.2,0.05755095]
[1718326601560,3.0,3475.6,3474.4,2.4962]
[1718326601744,3.0,3475.6,3474.4,3.92964514]
[1718326602188,2.027,3475.3,3474.4,3.92964514]
[1718326602586,2.027,3475.3,3474.5,0.17947612]
[1718326604048,3.0,3475.6,3474.5,0.17947612]
[1718326604254,2.027,3475.3,3474.5,0.43456566]
[1718326605992,2.027,3475.3,3474.6,0.17944269]
[1718326606559,2.027,3475.3,3474.4,2.4962]
[1718326608654,2.027,3475.3,3473.5,2.3775]
[1718326608861,2.027,3474.9,3473.6,1.98344514]
[1718326609061,2.027,3474.9,3473.7,0.43609451]
[1718326609403,2.027,3474.9,3473.8,1.61305453]
[1718326609590,3.49764634,3475.4,3473.8,1.61305453]
[1718326609794,2.027,3474.9,3473.8,1.61305453]
[1718326609961,2.027,3474.9,3473.9,0.2599149]
[1718326610302,2.027,3474.9,3473.9,1.87293599]
[1718326612476,2.027,3474.9,3473.9,1.69336004]
[1718326613664,2.027,3474.9,3474.1,2.3263]
[1718326613871,3.0,3475.2,3474.2,1.43344514]
[1718326614178,3.0,3475.2,3474.3,0.37597451]
[1718326614483,2.027,3475.3,3474.3,0.5554167]
[1718326617604,2.027,3475.3,3474.3,1.98886184]
[1718326618200,2.027,3475.3,3474.4,1.43344514]
[1718326618407,0.49762178,3475.6,3474.5,2.3941]
[1718326618577,0.49762178,3475.6,3474.7,2.3941]
[1718326618765,2.027,3476.1,3474.8,2.0409862]
[1718326618970,2.027,3476.1,3474.8,2.2203469]
[1718326619868,0.49762178,3476.2,3474.8,2.2203469]
[1718326620078,7.45,3476.3,3474.9,2.3902]
[1718326620396,2.027,3476.0,3475.0,2.60585761]
[1718326621113,2.027,3476.0,3475.1,0.05753754]
[1718326621405,2.027,3476.0,3475.2,1.61267215]
[1718326621928,2.027,3476.0,3475.3,0.05753757]
[1718326622411,2.027,3476.0,3475.3,0.17919359]
[1718326623419,3.32444721,3476.0,3475.3,0.17919359]
[1718326623568,3.0,3475.9,3475.3,0.17919359]
[1718326623773,3.4974721,3475.9,3474.9,2.3902]
[1718326623994,3.4974721,3475.9,3474.0,2.4774]
[1718326624202,3.4974721,3475.9,3474.1,1.43344514]
[1718326624203,2.027,3475.6,3474.1,1.43344514]
[1718326624418,2.027,3475.6,3474.2,0.417076]
[1718326624731,3.0,3475.7,3474.4,2.4774]
[1718326624875,0.4974721,3476.2,3474.9,2.4823]
[1718326625071,1.79987264,3476.5,3475.1,2.4823]
[1718326625072,2.027,3476.5,3475.1,2.4823]
[1718326625278,2.027,3476.1,3475.1,2.4823]
[1718326625488,2.027,3476.1,3475.2,0.17903051]
[1718326625736,2.2297,3476.1,3475.2,0.17903051]
[1718326626149,2.027,3475.7,3475.2,0.17903051]
[1718326626297,2.027,3475.7,3474.7,2.3188]
[1718326628237,3.0,3476.0,3474.8,1.43344514]
[1718326628539,0.70012701,3476.1,3474.8,1.43344514]
[1718326628540,2.027,3475.9,3474.8,1.43344514]
[1718326628723,2.027,3475.9,3474.9,0.37522451]
[1718326628897,2.027,3475.9,3474.9,1.80866965]
[1718326629093,1.999,3475.9,3474.9,1.80866965]
[1718326629522,1.999,3475.9,3475.0,1.43344514]
[1718326630735,1.855,3475.9,3475.1,0.05754212]
[1718326630912,1.855,3475.9,3475.2,0.18662118]
[1718326631111,1.855,3475.9,3475.3,0.05754215]
[1718326631311,1.855,3475.9,3475.4,2.3142]
[1718326631536,1.855,3475.9,3475.5,0.17883955]
[1718326631715,1.855,3475.9,3475.4,2.3142]
[1718326631928,1.855,3475.9,3475.4,2.56428212]
[1718326632121,1.855,3475.9,3475.5,0.17883955]
[1718326632466,3.0,3476.1,3475.4,2.56428212]
[1718326632603,7.45,3476.2,3475.6,0.17880614]
[1718326632807,2.027,3476.3,3475.5,1.43344514]
[1718326633007,2.027,3476.3,3475.7,0.05730896]
[1718326633301,2.027,3476.3,3475.6,0.39977273]
[1718326635619,2.027,3476.3,3475.4,2.3142]
[1718326635822,2.027,3476.3,3475.0,2.3713]
[1718326636053,2.027,3475.9,3475.5,0.17883955]
[1718326636356,2.027,3475.9,3475.6,0.17880614]
[1718326636561,2.027,3475.9,3475.1,1.43344514]
[1718326636855,2.027,3475.9,3475.7,0.17877273]
[1718326637150,2.027,3475.9,3475.8,0.1786033]
[1718326637443,2.027,3475.9,3475.2,0.38047451]
[1718326637743,2.027,3475.9,3475.3,0.17880562]
[1718326640737,2.02546432,3475.9,3475.3,0.17880562]
[1718326640942,2.02546432,3475.9,3475.4,0.19927253]
[1718326641261,2.02546432,3475.9,3475.4,0.37804473]
[1718326642838,2.02546432,3475.9,3475.4,0.1787722]
[1718326643241,2.02546432,3475.9,3475.0,2.3713]
[1718326644035,2.02546432,3475.9,3474.3,2.4878]
[1718326644331,2.02546432,3475.9,3474.4,1.61228961]
[1718326644527,2.02546432,3475.9,3474.5,0.05754896]
[1718326644720,2.02546432,3475.9,3474.6,2.02804706]
[1718326644928,2.02546432,3475.9,3474.7,0.05754564]
[1718326645187,2.02546432,3475.9,3474.8,0.05754398]
[1718326645332,2.02546432,3475.9,3474.8,0.23631518]
[1718326645724,2.02546432,3475.9,3474.8,1.66976032]
[1718326645926,2.02546432,3475.9,3474.9,0.20855242]
[1718326646156,2.02546432,3475.9,3475.0,0.17870435]
[1718326647767,1.79987264,3475.8,3475.0,0.17870435]
[1718326647933,4.79987264,3475.8,3474.6,0.41576386]
[1718326648128,4.79987264,3475.8,3474.6,1.849209]
[1718326648340,3.0,3475.8,3474.7,0.36372553]
[1718326648643,3.0,3475.8,3474.7,0.1849209]
[1718326650237,4.79987264,3475.8,3474.7,0.1849209]
[1718326650737,3.0,3475.8,3474.7,0.1849209]
[1718326651080,2.027,3475.5,3474.7,0.1849209]
[1718326652840,2.027,3475.5,3474.6,0.41576386]
[1718326655800,5.027,3475.6,3474.6,0.41576386]
[1718326655967,2.027,3475.6,3474.6,0.41576386]
[1718326656171,2.027,3475.6,3474.7,0.0575501]
[1718326656354,2.027,3475.6,3474.8,0.0575501]
[1718326656555,2.027,3475.6,3474.6,0.41576386]
[1718326657495,5.027,3475.6,3474.6,0.41576386]
[1718326657694,5.027,3475.6,3474.7,0.04649668]
[1718326658054,2.027,3475.6,3474.7,0.04649668]
[1718326659252,2.027,3475.6,3474.7,0.05755018]
[1718326659452,2.027,3475.6,3474.8,0.05755027]
[1718326660398,2.027,3475.6,3474.6,0.41576386]
[1718326660764,5.027,3475.6,3474.6,0.41576386]
[1718326661185,3.0,3475.6,3474.6,0.41576386]
[1718326661496,2.027,3475.7,3474.6,0.41576386]
[1718326661655,5.027,3475.7,3474.6,0.41576386]
[1718326661861,5.027,3475.7,3474.7,1.49099573]
[1718326662085,3.0,3475.7,3474.8,2.54112148]
[1718326662299,5.027,3475.9,3474.8,3.97456662]
[1718326662460,5.027,3475.9,3474.9,0.17910053]
[1718326662660,5.027,3475.9,3475.0,0.0575422]
[1718326663621,6.833789,3475.9,3475.0,0.0575422]
[1718326663822,6.833789,3475.9,3475.0,0.45499853]
[1718326664121,1.806789,3475.8,3475.0,0.39745633]
[1718326664283,4.806789,3475.8,3475.0,0.39745633]
[1718326664480,5.30436587,3475.8,3475.0,0.39745633]
[1718326664808,4.806789,3475.8,3475.0,0.39745633]
[1718326665007,1.806789,3475.7,3475.0,0.39745633]
[1718326665209,4.806789,3475.7,3475.0,0.39745633]
[1718326665730,1.806789,3475.7,3475.1,0.17894299]
[1718326666100,1.806789,3475.7,3475.0,0.39745633]
[1718326666306,3.0,3475.8,3475.0,0.39745633]
[1718326666630,1.80942358,3475.7,3475.0,0.39745633]
[1718326668147,2.2768,3475.4,3474.5,2.2577]
[1718326668292,2.2768,3475.4,3473.8,2.2577]
[1718326668293,4.08622358,3475.4,3473.8,2.2577]
[1718326668491,1.80942358,3475.3,3473.9,1.43344514]
[1718326668722,1.80942358,3475.3,3474.0,0.36911451]
[1718326668925,2.027,3475.1,3474.0,1.80255965]
[1718326669133,3.83642358,3475.1,3474.1,0.17933271]
[1718326669294,1.80942358,3475.0,3474.1,0.17933271]
[1718326669627,1.80942358,3475.0,3474.2,0.19818924]
[1718326670126,3.83642358,3475.1,3474.3,0.05755915]
[1718326670594,2.027,3475.1,3474.3,0.05755915]
[1718326670927,3.83642358,3475.1,3474.3,0.05755915]
[1718326671290,2.027,3475.1,3474.2,0.19818924]
[1718326671587,3.83642358,3475.1,3474.2,0.19818924]
[1718326672024,2.027,3475.1,3474.2,0.19818924]
[1718326673093,3.83642358,3475.1,3474.2,0.19818924]
[1718326673292,2.027,3475.1,3474.2,0.19818924]
[1718326676218,2.027,3475.1,3474.4,2.3859]
[1718326676421,2.027,3475.1,3474.5,0.46506447]
[1718326676837,2.027,3475.1,3474.5,0.58728786]
[1718326678809,5.30599857,3475.3,3474.5,0.58728786]
[1718326679014,0.845,3474.6,3474.5,0.40750936]
[1718326680117,0.845,3474.6,3474.2,0.19818924]
[1718326680348,0.845,3474.4,3474.2,0.19818924]
[1718326682219,0.845,3474.4,3473.7,2.3792]
[1718326682417,0.845,3474.0,3473.7,2.3792]
[1718326682851,0.845,3474.1,3473.7,2.3792]
[1718326684513,0.845,3474.1,3473.8,0.17994201]
[1718326684948,0.845,3474.1,3473.7,2.3792]
[1718326685137,0.845,3474.1,3473.8,0.23792]
[1718326685338,0.845,3474.1,3473.8,0.41786201]
[1718326685641,0.845,3474.1,3473.8,0.23792]
[1718326687122,0.845,3473.9,3473.2,2.4982]
[1718326687352,0.845,3473.7,3473.3,1.43344514]
[1718326687554,5.30595286,3474.7,3473.4,0.05757042]
[1718326687863,0.845,3473.9,3473.4,1.90635423]
[1718326688025,0.845,3473.9,3473.5,0.18018349]
[1718326688364,0.845,3473.9,3473.6,0.05756967]
[1718326688565,0.845,3473.9,3473.7,3.80574514]
[1718326688731,3.0,3474.7,3473.8,0.46191538]
[1718326688732,0.845,3474.3,3473.8,0.46191538]
[1718326689246,0.845,3474.3,3473.9,0.1800497]
[1718326690051,0.845,3474.3,3474.0,0.05756484]
[1718326690353,0.845,3474.3,3474.0,0.23758096]
[1718326692066,0.845,3474.3,3474.0,0.09358096]
[1718326692392,0.845,3474.3,3474.0,0.0575647]
[1718326692689,3.0,3474.7,3474.1,0.17518282]
[1718326692826,0.845,3474.2,3473.9,0.05756475]
[1718326693463,0.845,3474.0,3473.9,0.05756475]
[1718326693657,0.845,3474.0,3473.9,0.05756593]
[1718326694052,0.845,3474.0,3473.2,2.3611]
[1718326694359,0.845,3474.0,3473.9,0.1752497]
[1718326694550,0.845,3474.0,3473.3,1.43344514]
[1718326694751,0.02800008,3474.6,3473.9,0.1752497]
[1718326695080,0.845,3474.1,3473.8,2.4284]
[1718326695248,0.845,3474.1,3474.0,0.17521626]
[1718326695448,0.845,3474.1,3473.8,2.4284]
[1718326695690,0.845,3474.1,3474.0,0.17521626]
[1718326695837,0.845,3474.1,3473.8,2.4284]
[1718326696041,0.845,3474.1,3474.0,0.17521626]
[1718326696253,0.845,3474.1,3473.5,2.4284]
[1718326696447,0.845,3474.1,3474.0,0.17521626]
[1718326696665,0.845,3474.1,3473.6,0.42634738]
[1718326696846,0.845,3474.1,3474.0,0.17521626]
[1718326697087,0.845,3474.1,3473.6,0.42634738]
[1718326697374,0.845,3474.1,3474.0,0.17521626]
[1718326697575,0.845,3474.1,3473.6,0.42634738]
[1718326697774,0.845,3474.1,3474.0,0.17521626]
[1718326697962,0.845,3474.1,3473.6,0.42634738]
[1718326698472,0.845,3474.1,3473.7,0.17531659]
[1718326698676,0.845,3473.9,3473.7,0.17531659]
[1718326698979,0.845,3473.9,3473.5,2.4284]
[1718326699178,0.845,3473.9,3473.8,0.17528315]
[1718326699468,0.845,3473.9,3473.5,2.4284]
[1718326700049,0.845,3473.9,3473.6,0.17535004]
[1718326701685,0.845,3473.7,3473.6,0.17535004]
[1718326701887,0.845,3473.7,3473.1,2.52904156]
[1718326702048,0.845,3473.5,3473.2,0.17580142]
[1718326704170,0.845,3473.3,3473.2,0.17580142]
[1718326704377,0.845,3473.4,3473.2,0.17580142]
[1718326704600,0.845,3473.4,3472.6,0.05758173]
[1718326704765,0.845,3473.4,3473.3,0.17591419]
[1718326704979,0.845,3473.4,3472.8,0.05758122]
[1718326705193,0.845,3473.4,3473.3,0.17591419]
[1718326705377,0.845,3473.4,3472.8,0.05758122]
[1718326705751,2.4608,3473.9,3472.9,1.60949316]
[1718326705957,0.845,3473.7,3473.0,2.66810642]
[1718326706251,0.845,3473.7,3473.1,1.60942624]
[1718326706471,0.845,3473.7,3473.2,0.05757551]
[1718326706671,0.845,3473.7,3473.3,0.2334897]
[1718326707995,3.0,3473.9,3473.4,1.43344514]
[1718326708182,0.845,3473.8,3473.4,1.43344514]
[1718326708796,0.845,3473.6,3473.0,2.61053125]
[1718326708966,0.845,3473.6,3473.1,1.69449827]
[1718326709300,0.845,3473.6,3473.1,1.87043903]
[1718326711594,3.0,3473.9,3473.1,1.87043903]
[1718326711781,0.845,3473.7,3473.1,1.87043903]
[1718326711982,3.02800008,3474.3,3473.1,1.87043903]
[1718326712187,0.845,3473.7,3473.2,0.4196439]
[1718326712496,0.845,3473.7,3473.3,1.60931899]
[1718326716905,2.4707,3473.9,3473.3,1.60931899]
[1718326716906,0.845,3473.5,3473.3,0.17587385]
[1718326717058,0.845,3473.5,3472.7,2.3081]
[1718326717263,0.845,3473.5,3472.8,1.60969302]
[1718326717465,0.845,3473.3,3472.8,1.60969302]
[1718326718890,0.845,3473.1,3472.8,0.17624788]
[1718326719056,0.845,3473.1,3472.3,2.3122]
[1718326719262,0.845,3473.1,3472.4,1.60982689]
[1718326720251,0.845,3473.3,3472.4,1.60982689]
[1718326721445,0.845,3473.3,3472.5,0.05758479]
[1718326721643,0.845,3473.3,3472.6,1.43344514]
[1718326721956,0.845,3473.3,3472.7,0.05758204]
[1718326722121,0.845,3473.3,3472.8,0.05758206]
[1718326722320,0.845,3473.3,3472.9,0.17621442]
[1718326722526,0.845,3473.3,3472.8,0.05758206]
[1718326722722,0.845,3473.3,3472.9,0.17621442]
[1718326722951,0.845,3473.3,3472.8,0.05758206]
[1718326723123,0.845,3473.3,3473.0,0.17618095]
[1718326723448,0.845,3473.3,3472.8,0.05758206]
[1718326723449,0.845,3473.3,3473.1,0.17614749]
[1718326723765,0.845,3473.3,3472.7,1.06717469]
[1718326723926,0.845,3473.3,3472.8,0.0575821]
[1718326724275,0.845,3473.3,3472.9,0.17034283]
[1718326724574,0.845,3473.3,3472.8,0.0575821]
[1718326724715,0.845,3473.3,3473.0,0.17030937]
[1718326724915,0.845,3473.3,3472.8,0.0575821]
[1718326725129,0.845,3473.3,3472.9,0.17034283]
[1718326725329,0.845,3473.3,3472.8,0.0575821]
[1718326725531,0.845,3473.3,3472.9,0.17034283]
[1718326725820,0.845,3473.3,3473.0,0.17030937]
[1718326726024,0.845,3473.1,3472.3,2.62792]
[1718326726341,0.845,3472.9,3472.4,1.60395531]
[1718326730267,0.845,3473.0,3472.5,0.0575873]
[1718326730429,0.845,3473.0,3472.6,0.17091222]
[1718326731036,0.845,3473.0,3472.4,1.43344514]
[1718326731232,0.845,3472.8,3472.4,1.43344514]
[1718326731458,0.845,3472.8,3472.5,0.17094569]
[1718326731972,0.07198548,3473.4,3472.5,0.17094569]
[1718326732147,0.39611256,3473.3,3472.6,0.05758684]
[1718326732348,0.845,3472.9,3472.6,0.05758684]
[1718326732668,0.845,3472.9,3472.7,0.17087875]
[1718326733767,0.845,3472.9,3472.4,1.43344514]
[1718326734273,0.845,3472.9,3472.5,0.17094569]
[1718326736476,0.845,3473.0,3472.6,0.05758789]
[1718326736771,0.07198401,3473.4,3472.7,0.17087875]
[1718326736967,0.845,3473.0,3472.7,0.17087875]
[1718326737639,0.845,3473.0,3472.5,0.05758702]
[1718326737842,0.845,3473.0,3472.6,0.17091222]
[1718326738062,0.07198401,3473.4,3472.6,0.17091222]
[1718326738255,0.845,3473.0,3472.6,0.17091222]
[1718326741362,0.07198401,3473.4,3472.6,0.17091222]
[1718326741558,0.845,3473.0,3472.6,0.17091222]
[1718326742890,0.845,3473.0,3472.4,1.43344514]
[1718326743102,0.845,3473.0,3472.7,0.17095442]
[1718326743394,0.845,3473.0,3472.4,1.43344514]
[1718326743608,0.07198391,3472.9,3472.8,0.17092095]
[1718326743898,0.07198391,3472.9,3471.4,2.3806]
[1718326743899,0.845,3472.9,3471.4,2.3806]
[1718326744100,0.845,3472.3,3471.5,1.7316798]
[1718326746397,0.07199628,3472.7,3471.5,1.7316798]
[1718326746609,0.845,3472.5,3471.6,2.43419531]
[1718326746764,0.845,3472.5,3471.7,1.93453265]
[1718326749108,0.845,3472.5,3471.8,0.05759539]
[1718326749407,0.845,3472.5,3471.9,1.43344514]
[1718326749738,0.845,3472.5,3472.0,0.05759537]
[1718326750269,0.845,3472.5,3471.9,1.43344514]
[1718326750570,0.845,3472.5,3471.9,1.8645584]
[1718326750771,0.845,3472.7,3472.0,2.38679541]
[1718326750974,0.845,3472.7,3472.0,3.82024055]
[1718326752789,0.845,3472.7,3472.1,0.17151343]
[1718326752987,0.845,3472.7,3472.2,0.05759457]
[1718326753414,0.845,3472.7,3472.3,0.17144648]
[1718326753815,0.845,3472.7,3472.2,0.05759457]
[1718326754120,0.845,3472.7,3472.3,0.17144648]
[1718326754326,0.845,3472.7,3472.2,0.05759457]
[1718326754497,0.845,3472.7,3472.4,0.17141301]
[1718326754683,0.845,3472.7,3472.2,0.05759457]
[1718326755025,0.845,3472.7,3472.5,0.17137954]
[1718326755224,0.845,3472.7,3472.2,0.05759457]
[1718326755385,0.845,3472.7,3472.6,0.17134607]
[1718326756014,0.845,3472.7,3472.2,0.05759457]
[1718326756213,0.845,3472.7,3472.6,0.17134607]
[1718326756383,0.845,3472.7,3472.1,0.05759463]
[1718326756584,0.845,3472.7,3472.6,0.17134607]
[1718326756784,0.845,3472.7,3472.1,0.05759463]
[1718326757019,0.845,3472.7,3472.6,0.17134607]
[1718326757257,0.845,3472.7,3472.1,0.05759463]
[1718326757722,0.845,3472.7,3472.2,0.17169689]
[1718326760491,0.845,3472.5,3472.0,3.76264514]
[1718326760691,0.845,3472.5,3472.3,0.17166341]
[1718326761044,0.845,3472.5,3472.0,3.76264514]
[1718326761189,0.845,3472.5,3472.0,1.43344514]
[1718326762232,0.07199383,3473.0,3470.9,4.89719005]
[1718326762233,0.845,3472.3,3472.1,0.17166982]
[1718326762594,0.845,3472.3,3471.4,2.4603]
[1718326762798,2.3442,3472.6,3471.5,1.43344514]
[1718326762991,2.9609873,3473.0,3471.7,0.845]
[1718326763196,0.845,3472.7,3471.8,1.49104047]
[1718326763423,0.845,3472.7,3471.9,0.47009405]
[1718326763620,0.845,3472.7,3472.0,0.05759531]
[1718326763823,0.845,3472.7,3472.0,0.22940962]
[1718326766104,3.0,3472.9,3472.1,3.77964514]
[1718326766305,0.845,3472.8,3472.2,0.0575923]
[1718326766612,0.845,3472.8,3472.2,0.22933965]
[1718326767541,0.845,3472.8,3472.2,0.17174735]
[1718326770708,2.11352953,3473.4,3472.3,1.49103756]
[1718326770709,1.81159674,3473.2,3472.3,1.49103756]
[1718326770909,2.2947,3473.4,3472.5,2.4271]
[1718326771145,0.845,3473.2,3472.6,1.49102989]
[1718326771341,0.845,3473.2,3472.6,1.66257271]
[1718326771968,2.2947,3473.4,3472.6,1.66257271]
[1718326772122,3.0,3473.6,3472.7,0.45750712]
[1718326772307,0.845,3473.3,3472.8,1.43344514]
[1718326772513,0.845,3473.3,3472.8,1.60492103]
[1718326776796,1.81106306,3473.8,3472.9,2.4176]
[1718326776943,1.81106306,3473.8,3473.0,1.92019724]
[1718326776944,0.845,3473.8,3473.0,1.92019724]
[1718326777142,0.845,3473.8,3473.1,0.17114848]
[1718326777339,0.07197171,3474.0,3473.1,0.17114848]
[1718326777556,0.845,3473.7,3473.0,1.92019724]
[1718326777731,0.845,3473.7,3473.1,0.51827972]
[1718326777932,0.845,3473.7,3473.2,0.17111502]
[1718326778661,0.845,3473.7,3473.1,0.51827972]
[1718326778862,0.845,3473.7,3473.2,0.01469469]
[1718326779065,0.845,3473.7,3473.2,0.0575774]
[1718326779364,3.07197171,3474.0,3473.2,0.0575774]
[1718326779365,0.845,3473.8,3473.2,0.50026763]
[1718326781266,0.845,3473.8,3473.3,0.17108157]
[1718326781665,0.845,3473.8,3473.1,0.05757643]
[1718326781873,0.845,3473.8,3473.2,0.05757477]
[1718326782234,0.845,3473.8,3473.3,0.17070323]
[1718326782572,0.845,3473.8,3473.2,0.05757477]
[1718326782769,0.845,3473.7,3473.3,0.17070323]
[1718326782973,0.845,3473.7,3473.1,0.05757477]
[1718326783269,0.845,3473.7,3473.2,0.56159868]
[1718326786461,0.845,3473.7,3473.2,0.17073669]
[1718326786664,0.07197022,3474.0,3473.2,0.17073669]
[1718326786843,0.845,3473.7,3473.0,1.43344514]
[1718326787289,0.845,3473.7,3473.1,0.17077015]
[1718326787451,0.845,3473.7,3473.1,1.60421529]
[1718326795354,0.845,3473.5,3473.1,0.17077015]
[1718326795561,0.845,3473.5,3472.9,2.4176]
[1718326795759,0.845,3473.5,3473.0,0.17088934]
[1718326798794,0.07197458,3474.0,3473.0,0.17088934]
[1718326799091,0.845,3473.6,3473.0,0.17088934]
[1718326799274,0.07197458,3474.0,3473.0,0.17088934]
[1718326799463,0.845,3473.6,3473.0,0.17088934]
[1718326799664,0.845,3473.6,3473.0,0.59725879]
[1718326800183,0.845,3473.6,3473.0,0.57625879]
[1718326800487,0.845,3473.7,3473.1,1.43344514]
[1718326801258,0.845,3473.5,3473.0,0.14988934]
[1718326802321,0.845,3473.1,3473.0,0.14988934]
[1718326802496,2.3874,3473.0,3471.2,2.3865]
[1718326802706,0.845,3471.6,3471.2,2.3865]
[1718326802861,0.845,3471.6,3470.8,2.4204]
[1718326803272,0.0720125,3472.5,3470.9,0.05761]
[1718326803566,0.0720125,3472.5,3470.8,2.4204]
[1718326803567,0.0720125,3472.5,3471.1,0.845]
[1718326803772,0.845,3472.5,3471.6,2.2989]
[1718326804026,0.845,3472.5,3471.7,0.31439]
[1718326804156,0.845,3472.3,3471.7,0.31439]
[1718326804364,0.845,3472.3,3471.8,1.43344514]
[1718326805669,0.49779091,3473.1,3471.8,1.43344514]
[1718326805872,0.845,3473.0,3472.0,0.845]
[1718326806099,1.80731548,3473.7,3472.4,0.845]
[1718326806419,1.80731548,3473.7,3472.8,0.845]
[1718326806420,0.845,3473.7,3472.8,0.845]
[1718326806588,1.80731548,3474.2,3473.0,0.845]
[1718326806792,2.10853473,3474.5,3472.8,0.23360288]
[1718326806793,1.80731548,3474.5,3473.2,3.3218]
[1718326806985,1.80731548,3474.6,3473.3,1.49101768]
[1718326807353,2.365,3475.4,3473.7,0.845]
[1718326807502,0.845,3474.9,3473.9,0.845]
[1718326807701,0.07194812,3475.1,3474.0,1.46787282]
[1718326807887,0.845,3474.9,3474.1,0.05424839]
[1718326808086,0.845,3474.9,3474.2,1.43344514]
[1718326808405,0.53372826,3475.3,3474.3,0.05755848]
[1718326808574,1.80670098,3475.8,3474.5,0.845]
[1718326808575,0.07194503,3475.7,3474.5,0.845]
[1718326808777,0.91694503,3475.7,3474.7,0.845]
[1718326808980,0.07194503,3475.7,3474.8,1.49099282]
[1718326809525,3.83470098,3476.4,3474.8,1.49099282]
[1718326809526,0.07193651,3475.9,3474.8,1.49099282]
[1718326810326,0.07193628,3476.3,3474.8,1.43344514]
[1718326810541,2.028,3475.9,3474.2,2.3623]
[1718326810677,0.07194734,3475.8,3474.3,1.43344514]
[1718326810875,0.07194243,3475.7,3474.3,1.43344514]
[1718326811119,0.28193667,3475.7,3474.3,1.43344514]
[1718326811282,0.20999424,3475.7,3474.4,0.6075539]
[1718326811487,0.20999424,3475.7,3474.5,1.43344514]
[1718326811871,0.07193333,3475.6,3474.5,1.43344514]
[1718326813212,2.09993333,3475.6,3473.6,2.3716]
[1718326813412,2.4805,3475.5,3473.7,1.43344514]
[1718326813638,0.07194761,3475.4,3473.7,1.43344514]
[1718326813815,3.07194761,3475.4,3473.7,1.43344514]
[1718326814023,0.75804476,3475.3,3473.8,1.89224686]
[1718326814251,0.75804476,3475.3,3473.8,1.94980359]
[1718326814379,2.3322,3476.1,3474.1,1.43344514]
[1718326814380,2.028,3475.9,3474.1,1.43344514]
[1718326814579,2.3322,3476.1,3474.2,2.00900215]
[1718326814580,0.07193498,3475.8,3474.2,2.00900215]
[1718326814780,0.0719348,3475.7,3474.3,0.05754784]
[1718326814993,0.07193478,3476.0,3474.4,1.43344514]
[1718326815195,2.028,3475.8,3474.4,1.43344514]
[1718326815434,0.2819365,3475.7,3474.4,1.43344514]
[1718326815957,0.2819365,3475.7,3473.6,2.3716]
[1718326815958,2.028,3475.4,3473.6,2.3716]
[1718326816237,2.028,3475.0,3473.7,1.43344514]
[1718326816393,0.51039889,3474.9,3473.7,0.14715833]
[1718326816722,0.51039889,3474.9,3473.0,2.2526]
[1718326816926,3.51039889,3474.9,3473.1,1.58080419]
[1718326817130,3.51039889,3474.9,3473.2,1.43344514]
[1718326817463,3.51039889,3474.9,3473.3,0.14729213]
[1718326817609,0.55383989,3474.8,3473.4,1.43344514]
[1718326817809,0.07195924,3474.7,3473.4,1.43344514]
[1718326818055,0.07195924,3474.7,3473.5,0.14649624]
[1718326818413,0.07195924,3474.7,3473.6,1.43344514]
[1718326818848,0.07195924,3474.7,3473.7,0.14656501]
[1718326819161,0.40642391,3474.6,3473.7,0.14656501]
[1718326819459,0.07196995,3474.5,3473.7,0.14656501]
[1718326819760,0.07196995,3474.5,3472.8,0.05757399]
[1718326819961,0.07196995,3474.5,3472.9,1.43344514]
[1718326820168,0.07196995,3474.5,3473.0,0.05756951]
[1718326820458,0.07196189,3474.8,3473.1,1.59723741]
[1718326820662,0.07196193,3474.7,3473.1,1.74407851]
[1718326821444,0.07196193,3474.7,3473.1,1.58028624]
[1718326822356,0.07196193,3474.7,3473.2,0.05387595]
[1718326822563,0.07196193,3474.7,3473.3,1.5801741]
[1718326822883,0.07196193,3474.7,3473.4,0.05756637]
[1718326823012,0.07196193,3474.7,3473.5,1.43344514]
[1718326823208,0.07196193,3474.7,3473.5,1.5801072]
[1718326823815,0.07196193,3474.7,3473.5,0.14666206]
[1718326824016,0.25384019,3474.6,3473.5,0.14666206]
[1718326824255,0.07196593,3474.5,3472.6,1.729]
[1718326824450,0.07196593,3474.5,3473.0,1.43344514]
[1718326824638,0.07196593,3474.5,3473.1,0.55]
[1718326824843,0.07196593,3474.5,3473.2,1.43344514]
[1718326825268,0.07196593,3474.5,3473.3,0.14673399]
[1718326825418,0.07196593,3474.5,3473.4,1.43344514]
[1718326826820,0.07196593,3474.5,3473.5,0.05757249]
[1718326827241,0.53538061,3474.5,3473.6,1.43344514]
[1718326827462,0.32580577,3474.6,3473.7,0.05756712]
[1718326827656,0.07196558,3474.6,3473.7,1.63761244]
[1718326827862,0.07196558,3474.6,3473.8,0.05756546]
[1718326828048,0.07196558,3474.6,3473.7,1.43344514]
[1718326828223,0.07195925,3474.8,3473.7,1.43344514]
[1718326828554,0.0719593,3474.7,3472.5,6.757]
[1718326828857,0.25383993,3474.6,3472.7,1.43344514]
[1718326829028,0.07196589,3474.5,3472.8,0.55]
[1718326829235,0.07196589,3474.5,3472.9,1.43344514]
[1718326829637,5.79444514,3474.4,3473.0,0.14707556]
[1718326829854,3.68400366,3474.3,3473.0,0.14707556]